bitfinex/quotes_SOLUSD_20240816
["timestamp","ask_amount","ask_price","bid_price","bid_amount"]
[1723837956734,7.0742,141.36,141.32,7.076]
[1723837956908,7.0748,141.35,141.31,69.7671]
[1723837957833,7.0742,141.36,141.31,69.7671]
[1723837958527,16.2462,141.37,141.33,17.6886]
[1723837959143,16.2462,141.37,141.31,52.0765]
[1723837959343,16.2462,141.37,141.3,17.6919]
[1723837959344,20.0,141.36,141.3,17.6919]
[1723837959935,7.0747,141.35,141.3,24.7687]
[1723837962644,20.0,141.36,141.3,17.6919]
[1723837962941,62.15,141.36,141.28,7.0779]
[1723837963249,7.0757,141.33,141.28,7.0779]
[1723837963454,7.0764,141.32,141.28,7.0779]
[1723837964130,7.0757,141.33,141.28,7.0779]
[1723837964439,62.15,141.36,141.3,7.0771]
[1723837964440,7.0753,141.34,141.3,7.0771]
[1723837966058,42.15,141.33,141.26,17.6974]
[1723837966216,42.0889,141.32,141.22,7.39192114]
[1723837966410,42.0889,141.32,141.23,17.7007]
[1723837966411,7.0777,141.29,141.23,17.7007]
[1723837967230,7.0772,141.3,141.25,7.0793]
[1723837968743,7.0777,141.29,141.24,7.0801]
[1723837968951,7.0782,141.28,141.23,24.7809]
[1723837969540,7.0782,141.28,141.24,7.0801]
[1723837969923,7.0777,141.29,141.24,7.0801]
[1723837970123,42.0889,141.32,141.25,17.6984]
[1723837970321,7.0769,141.31,141.26,52.0789]
[1723837970548,42.0889,141.32,141.25,17.6984]
[1723837970751,7.078,141.29,141.25,17.6984]
[1723837970950,7.078,141.29,141.25,24.778]
[1723837971327,7.0772,141.3,141.26,7.079]
[1723837971752,7.0767,141.31,141.26,7.079]
[1723837972146,42.0889,141.32,141.27,17.6957]
[1723837972360,22.0889,141.32,141.27,17.6957]
[1723837972566,7.0759,141.33,141.28,45.0]
[1723837972861,7.0759,141.33,141.28,46.41531869]
[1723837973071,22.0889,141.35,141.31,7.0762]
[1723837974135,29.1638,141.35,141.3,7.0769]
[1723837974576,7.0731,141.38,141.34,7.0746]
[1723837974869,7.0731,141.38,141.28,87.13]
[1723837976160,7.0731,141.38,141.33,24.7635]
[1723837977548,7.0738,141.37,141.33,17.6883]
[1723837978554,7.0745,141.36,141.31,7.0766]
[1723837978908,7.0745,141.36,141.32,45.0]
[1723837979446,7.0745,141.36,141.32,52.076]
[1723837979646,7.0737,141.37,141.32,52.076]
[1723837980254,42.13,141.38,141.31,7.0764]
[1723837980455,20.0,141.37,141.31,7.0764]
[1723837982150,7.0747,141.35,141.31,7.0764]
[1723837982763,7.0742,141.36,141.32,7.076]
[1723837983151,27.0737,141.37,141.32,7.076]
[1723837983575,20.0,141.37,141.3,17.6927]
[1723837983764,20.0,141.37,141.31,45.0]
[1723837985054,7.0749,141.35,141.31,52.0765]
[1723837985255,7.0749,141.35,141.31,45.0]
[1723837986660,7.0751,141.34,141.3,24.7697]
[1723837989362,62.2410988,141.37,141.31,7.0764]
[1723837989783,20.0,141.37,141.32,62.6899]
[1723837989983,7.0739,141.37,141.32,69.7658]
[1723837990389,7.0742,141.36,141.32,69.7658]
[1723837990789,7.074,141.37,141.32,62.6899]
[1723837990968,7.0744,141.36,141.32,69.7658]
[1723837994969,7.0738,141.37,141.33,7.0756]
[1723837995298,7.0738,141.37,141.32,69.7658]
[1723837995807,16.308,141.39,141.34,17.6871]
[1723837995972,23.381,141.39,141.34,24.762]
[1723837996980,23.381,141.39,141.35,7.0744]
[1723837997185,16.308,141.39,141.35,7.0744]
[1723837997913,16.308,141.39,141.36,7.074]
[1723837998208,7.0714,141.42,141.37,52.0734]
[1723837999505,7.0714,141.42,141.38,7.0729]
[1723838000079,7.0714,141.42,141.37,52.0734]
[1723838000403,7.072,141.41,141.36,24.7588]
[1723838000900,7.0721,141.4,141.36,24.7588]
[1723838002507,7.0717,141.41,141.37,7.0735]
[1723838002709,7.0717,141.41,141.36,24.7587]
[1723838002880,50.6352197,141.43,141.36,24.7587]
[1723838002881,7.0722,141.4,141.36,24.7587]
[1723838003482,7.072,141.41,141.37,7.0736]
[1723838004289,7.0719,141.41,141.38,45.0]
[1723838004604,7.0719,141.41,141.37,52.0732]
[1723838005184,16.9452197,141.43,141.37,62.6837]
[1723838005596,0.8679197,141.43,141.39,7.0721]
[1723838005882,0.8679197,141.43,141.4,45.0]
[1723838007127,0.8679197,141.43,141.4,52.0719]
[1723838010009,0.8679197,141.43,141.41,7.0715]
[1723838010213,0.8679197,141.43,141.42,45.0]
[1723838010431,0.8679197,141.43,141.42,52.0711]
[1723838011019,0.8679197,141.43,141.42,45.0]
[1723838013590,0.8679197,141.43,141.42,52.0711]
[1723838015094,0.8679197,141.43,141.42,53.48279888]
[1723838015720,0.8679197,141.43,141.42,73.48279888]
[1723838018301,0.8679197,141.43,141.42,73.60828888]
[1723838018496,0.8679197,141.43,141.42,73.73377888]
[1723838018728,6.293,141.55,141.49,7.0671]
[1723838018892,7.0654,141.54,141.5,45.0]
[1723838019205,6.293,141.55,141.52,7.0659]
[1723838019401,15.4326,141.56,141.53,45.0]
[1723838020321,22.4969,141.56,141.51,7.0664]
[1723838020531,22.4969,141.56,141.52,45.0]
[1723838021221,22.4967,141.56,141.52,69.7309]
[1723838021542,7.0655,141.54,141.5,7.067]
[1723838021825,7.0648,141.55,141.51,45.0]
[1723838022600,15.4326,141.56,141.51,62.6661]
[1723838022601,22.4968,141.56,141.51,62.6661]
[1723838022826,15.4326,141.56,141.53,7.0655]
[1723838023202,15.4326,141.56,141.54,45.0]
[1723838023403,15.4326,141.56,141.51,62.6661]
[1723838024018,15.4326,141.56,141.53,7.0656]
[1723838024310,15.4326,141.56,141.54,45.0]
[1723838025312,15.4326,141.56,141.51,17.6661]
[1723838025512,15.4326,141.56,141.51,24.7326]
[1723838026034,15.4326,141.56,141.48,385.3]
[1723838026035,7.0669,141.51,141.48,385.3]
[1723838026332,33.69,141.52,141.48,385.3]
[1723838026528,7.0673,141.5,141.48,385.3]
[1723838026728,7.0667,141.51,141.48,385.3]
[1723838027530,7.0662,141.52,141.48,392.368]
[1723838028140,33.69,141.54,141.48,385.3]
[1723838028141,7.0666,141.51,141.48,385.3]
[1723838029330,7.0662,141.52,141.49,45.0]
[1723838029644,49.1226,141.56,141.49,45.0]
[1723838029934,20.0,141.55,141.49,45.0]
[1723838030613,20.0,141.55,141.49,52.0672]
[1723838030614,7.0659,141.53,141.49,52.0672]
[1723838030814,7.0652,141.54,141.5,7.067]
[1723838031720,7.0652,141.54,141.51,45.0]
[1723838031915,7.0647,141.55,141.51,52.0666]
[1723838032919,15.4326,141.56,141.51,45.0]
[1723838033126,0.8679197,141.57,141.53,7.0655]
[1723838033315,7.9318197,141.57,141.54,45.0]
[1723838033513,7.9318197,141.57,141.54,46.41281976]
[1723838033833,7.9318197,141.57,141.54,45.0]
[1723838034815,0.8679197,141.57,141.54,45.0]
[1723838035419,7.9317197,141.57,141.54,45.0]
[1723838035847,7.0642,141.56,141.52,7.066]
[1723838036037,7.0646,141.55,141.5,24.7339]
[1723838036237,7.0646,141.55,141.51,52.0665]
[1723838036743,7.0646,141.55,141.51,7.0665]
[1723838037540,7.0646,141.55,141.5,24.7342]
[1723838038027,33.69,141.56,141.49,7.0675]
[1723838038626,33.69,141.56,141.49,17.6686]
[1723838038837,7.0649,141.55,141.49,17.6686]
[1723838039140,7.0652,141.54,141.5,7.067]
[1723838039349,7.0652,141.54,141.49,24.736]
[1723838039849,7.0652,141.54,141.5,52.067]
[1723838040027,7.0652,141.54,141.5,45.0]
[1723838040219,7.0647,141.55,141.5,45.0]
[1723838040419,7.0647,141.55,141.51,7.0665]
[1723838040628,7.0651,141.54,141.5,45.0]
[1723838041635,7.0647,141.55,141.51,7.0665]
[1723838041840,7.0647,141.55,141.52,45.0]
[1723838043034,7.0655,141.54,141.52,45.0]
[1723838043441,7.0655,141.54,141.51,45.0]
[1723838043852,7.0648,141.55,141.51,45.0]
[1723838044042,0.8679197,141.57,141.52,7.0657]
[1723838044236,0.8679197,141.57,141.53,45.0]
[1723838045258,0.8679197,141.57,141.51,17.6662]
[1723838045259,7.9315197,141.57,141.52,45.0]
[1723838045552,7.9315197,141.57,141.53,7.0653]
[1723838045853,7.9315197,141.57,141.54,45.0]
[1723838046467,0.8679197,141.57,141.54,45.0]
[1723838046646,0.8679197,141.57,141.56,7.0641]
[1723838046960,0.8679197,141.57,141.56,52.0641]
[1723838051248,0.8679197,141.57,141.56,45.0]
[1723838052074,0.8679197,141.57,141.56,52.0641]
[1723838055171,0.8679197,141.57,141.56,45.0]
[1723838055354,0.8679197,141.57,141.56,52.0641]
[1723838056169,0.8679197,141.57,141.54,7.0649]
[1723838057450,7.9318197,141.57,141.52,17.6645]
[1723838057774,0.8679197,141.57,141.53,7.0653]
[1723838058779,0.8679197,141.57,141.54,45.0]
[1723838058991,0.8679197,141.57,141.52,385.3]
[1723838059200,7.0656,141.53,141.52,385.3]
[1723838059484,33.69,141.54,141.46,24.7407]
[1723838059669,7.0674,141.5,141.46,24.7409]
[1723838059978,7.0674,141.5,141.46,17.672]
[1723838060709,7.0676,141.49,141.46,17.672]
[1723838060880,7.0685,141.48,141.43,17.6762]
[1723838061078,7.0677,141.49,141.44,7.07]
[1723838061802,6.6373,141.5,141.45,17.6734]
[1723838062103,16.0972,141.51,141.45,17.6734]
[1723838062489,23.1639,141.51,141.46,7.0689]
[1723838062916,23.1639,141.51,141.47,45.0]
[1723838063115,7.0672,141.5,141.47,45.0]
[1723838063687,7.0672,141.5,141.46,7.0689]
[1723838063902,7.0678,141.49,141.45,24.7428]
[1723838064106,7.0678,141.49,141.46,45.0]
[1723838067005,7.0681,141.48,141.46,45.0]
[1723838067208,7.0681,141.48,141.44,7.07]
[1723838067519,7.0681,141.48,141.45,45.0]
[1723838070399,7.0687,141.47,141.45,45.0]
[1723838070598,7.0682,141.48,141.44,45.0]
[1723838071109,7.0682,141.48,141.43,45.0]
[1723838071495,7.0682,141.48,141.43,52.0704]
[1723838072722,7.0677,141.49,141.45,7.0696]
[1723838072906,16.0972,141.51,141.46,45.0]
[1723838072907,7.0674,141.5,141.46,45.0]
[1723838073818,23.1639,141.51,141.46,52.0687]
[1723838074126,7.0672,141.5,141.46,52.0687]
[1723838076897,7.0676,141.49,141.46,45.0]
[1723838078224,7.0676,141.49,141.44,24.7445]
[1723838080432,33.69,141.48,141.41,17.6782]
[1723838081715,7.0686,141.47,141.43,7.0701]
[1723838083014,33.69,141.48,141.44,52.07]
[1723838083015,7.0682,141.48,141.44,52.07]
[1723838084043,33.7641,141.51,141.44,52.07]
[1723838084044,7.0677,141.49,141.44,52.07]
[1723838085415,7.0682,141.48,141.44,52.07]
[1723838085825,7.0677,141.49,141.44,52.07]
[1723838087025,7.0677,141.49,141.45,7.0695]
[1723838087226,7.0677,141.49,141.46,45.0]
[1723838087424,16.0972,141.51,141.46,52.0691]
[1723838087732,16.0972,141.51,141.46,45.0]
[1723838089519,7.0675,141.5,141.46,45.0]
[1723838090341,7.0675,141.5,141.46,52.069]
[1723838093688,7.0678,141.49,141.46,45.0]
[1723838093951,7.0673,141.5,141.46,45.0]
[1723838094713,7.0673,141.5,141.46,52.069]
[1723838095342,7.0671,141.5,141.46,52.069]
[1723838098951,7.0681,141.48,141.46,45.0]
[1723838099144,7.0681,141.48,141.44,7.0699]
[1723838099342,7.0681,141.48,141.45,45.0]
[1723838100351,33.69,141.48,141.42,385.3]
[1723838100646,7.0706,141.43,141.42,385.3]
[1723838101069,7.0706,141.43,141.38,24.7553]
[1723838102073,15.0402,141.45,141.38,24.7553]
[1723838102074,15.0402,141.45,141.4,7.0721]
[1723838102243,15.0402,141.45,141.41,45.0]
[1723838102443,7.0701,141.44,141.41,45.0]
[1723838102660,15.0402,141.45,141.36,7.39075158]
[1723838102841,7.0723,141.4,141.36,392.69075158]
[1723838103170,7.0726,141.39,141.36,385.3]
[1723838103471,7.0726,141.39,141.33,258.5]
[1723838103472,7.0734,141.38,141.33,7.0755]
[1723838103771,7.0732,141.38,141.33,7.0755]
[1723838104345,6.0525,141.41,141.33,17.6882]
[1723838104547,7.0721,141.4,141.35,7.0745]
[1723838104776,20.0,141.44,141.33,33.69]
[1723838104949,21.0927,141.45,141.35,33.69]
[1723838105174,21.0927,141.45,141.4,7.0716]
[1723838105483,21.0927,141.45,141.41,45.0]
[1723838105664,22.1101,141.45,141.41,45.0]
[1723838105868,7.0702,141.44,141.39,17.6807]
[1723838106050,15.0402,141.45,141.39,17.6807]
[1723838106252,7.0707,141.43,141.4,45.0]
[1723838106867,15.0402,141.45,141.38,7.0727]
[1723838106868,7.0712,141.42,141.38,7.0727]
[1723838107085,7.0712,141.42,141.36,422.985]
[1723838107086,33.69,141.43,141.36,410.0587]
[1723838107264,33.69,141.41,141.36,385.3]
[1723838107468,7.073,141.39,141.36,385.3]
[1723838107671,7.073,141.39,141.34,7.075]
[1723838107985,7.0722,141.4,141.33,17.6886]
[1723838108677,7.0722,141.4,141.35,7.0745]
[1723838108852,7.0731,141.38,141.34,7.075]
[1723838109043,7.0731,141.38,141.33,24.7641]
[1723838110050,7.0737,141.37,141.33,17.6886]
[1723838110249,16.3691,141.38,141.31,7.0762]
[1723838110250,7.0746,141.36,141.31,7.0762]
[1723838110649,7.0737,141.37,141.32,7.076]
[1723838110883,23.4424,141.38,141.33,7.0755]
[1723838112082,23.4424,141.38,141.34,52.0751]
[1723838112281,23.4424,141.38,141.34,45.0]
[1723838112655,23.4424,141.38,141.33,45.0]
[1723838112859,23.4424,141.38,141.33,52.0755]
[1723838113059,16.0874,141.41,141.33,45.0]
[1723838113254,16.0874,141.41,141.36,17.6845]
[1723838113468,33.69,141.45,141.38,7.0727]
[1723838113469,7.071,141.43,141.38,7.0727]
[1723838114667,16.0874,141.44,141.36,17.6845]
[1723838114876,7.072,141.41,141.37,45.0]
[1723838115178,7.0723,141.4,141.37,45.0]
[1723838115490,7.0723,141.4,141.36,17.6845]
[1723838115657,7.0717,141.41,141.36,17.6845]
[1723838115864,7.0712,141.42,141.37,45.0]
[1723838116370,16.0874,141.44,141.38,17.6821]
[1723838116577,16.0874,141.44,141.4,7.072]
[1723838116775,7.0697,141.45,141.41,45.0]
[1723838116973,7.0701,141.44,141.41,45.0]
[1723838117281,7.0692,141.46,141.41,52.0716]
[1723838118375,15.5499,141.48,141.41,45.0]
[1723838118578,7.0696,141.45,141.41,45.0]
[1723838120079,7.0702,141.44,141.41,45.0]
[1723838120271,7.0702,141.44,141.4,17.6797]
[1723838121089,7.0702,141.44,141.4,24.7518]
[1723838121669,15.5499,141.48,141.4,17.6797]
[1723838121869,15.5499,141.48,141.37,385.3]
[1723838121870,15.5499,141.48,141.42,17.677]
[1723838122086,7.0688,141.47,141.42,24.7479]
[1723838122287,7.0688,141.47,141.43,45.0]
[1723838122984,7.0688,141.47,141.43,52.0706]
[1723838123493,7.0693,141.46,141.43,45.0]
[1723838123681,7.0693,141.46,141.42,24.748]
[1723838124407,33.69,141.47,141.38,21.5216]
[1723838124570,33.69,141.45,141.37,385.3]
[1723838124770,33.69,141.45,141.38,7.0727]
[1723838125076,7.0707,141.43,141.38,7.0727]
[1723838125288,7.0707,141.43,141.39,7.0725]
[1723838125973,7.0707,141.43,141.38,24.7553]
[1723838126191,7.0707,141.43,141.39,45.0]
[1723838126367,7.0702,141.44,141.39,52.0725]
[1723838127083,7.0697,141.45,141.41,7.0714]
[1723838127288,7.0697,141.45,141.42,45.0]
[1723838128786,7.0704,141.44,141.41,45.0]
[1723838129112,7.0706,141.43,141.37,17.6833]
[1723838129285,7.0706,141.43,141.38,7.0728]
[1723838129475,7.0706,141.43,141.39,8.48684856]
[1723838130769,7.0706,141.43,141.39,7.0725]
[1723838132068,7.0706,141.43,141.37,17.6833]
[1723838132069,7.0706,141.43,141.38,7.0729]
[1723838132269,7.0706,141.43,141.39,45.0]
[1723838132678,7.072,141.41,141.37,17.6833]
[1723838132889,7.0723,141.4,141.37,17.6833]
[1723838133210,7.0723,141.4,141.35,385.3]
[1723838133211,7.0727,141.39,141.35,392.3744]
[1723838133507,7.0731,141.38,141.34,24.7617]
[1723838133705,7.0727,141.39,141.34,24.7617]
[1723838134003,7.0727,141.39,141.35,7.0746]
[1723838134587,7.0727,141.39,141.34,24.7618]
[1723838134783,42.07,141.4,141.35,45.0]
[1723838134996,42.07,141.4,141.34,52.0751]
[1723838134997,7.0732,141.38,141.34,52.0751]
[1723838136004,7.0732,141.38,141.34,45.0]
[1723838136201,7.0737,141.37,141.33,24.7642]
[1723838137602,7.0737,141.37,141.34,45.0]
[1723838138906,7.0732,141.38,141.34,52.0751]
[1723838141110,59.7507,141.4,141.34,45.0]
[1723838141283,7.0745,141.36,141.34,45.0]
[1723838141486,7.0745,141.36,141.31,385.3]
[1723838141681,7.0748,141.35,141.32,45.0]
[1723838142993,7.0748,141.35,141.31,392.3765]
[1723838143991,42.07,141.36,141.31,385.3]
[1723838144190,15.4132,141.35,141.31,385.3]
[1723838144412,7.0752,141.34,141.31,385.3]
[1723838145509,7.0756,141.33,141.31,385.3]
[1723838146409,7.0761,141.32,141.31,385.3]
[1723838146602,7.0768,141.31,141.27,24.7742]
[1723838146809,7.0768,141.31,141.24,385.3]
[1723838146810,7.0781,141.28,141.24,24.7796]
[1723838146999,7.0781,141.28,141.21,51.4315]
[1723838147000,15.4132,141.29,141.21,17.7039]
[1723838147197,7.0797,141.25,141.21,17.7039]
[1723838147424,7.0792,141.26,141.21,24.7853]
[1723838147629,7.0792,141.26,141.22,7.081]
[1723838147790,7.0792,141.26,141.2,7.39111483]
[1723838147791,7.0805,141.24,141.2,7.39111483]
[1723838148325,7.0805,141.24,141.19,7.0825]
[1723838148625,15.4132,141.29,141.22,7.081]
[1723838148832,7.0787,141.27,141.23,7.0805]
[1723838149326,7.0787,141.27,141.24,45.0]
[1723838149709,7.0782,141.28,141.24,45.0]
[1723838150598,7.0786,141.27,141.24,45.0]
[1723838151619,15.4132,141.29,141.24,62.6995]
[1723838151810,15.4132,141.29,141.26,7.079]
[1723838152021,15.4132,141.29,141.27,45.0]
[1723838152225,22.4909,141.29,141.26,45.0]
[1723838152428,22.4909,141.29,141.25,7.0795]
[1723838152636,22.4909,141.29,141.24,69.7794]
[1723838153436,7.0781,141.28,141.24,62.6995]
[1723838153996,7.0788,141.27,141.24,45.0]
[1723838154311,7.0782,141.28,141.24,45.0]
[1723838155241,7.0788,141.27,141.24,45.0]
[1723838155612,7.0792,141.26,141.22,7.081]
[1723838155808,7.0792,141.26,141.23,45.0]
[1723838156007,7.0787,141.27,141.23,45.0]
[1723838156644,15.4132,141.29,141.23,62.7008]
[1723838156943,22.4912,141.29,141.24,7.08]
[1723838157104,22.4912,141.29,141.25,45.0]
[1723838157435,22.4912,141.29,141.24,7.0799]
[1723838157608,7.0781,141.28,141.25,45.0]
[1723838157951,22.491,141.29,141.25,45.0]
[1723838158508,22.491,141.29,141.25,52.0795]
[1723838158709,15.4132,141.29,141.25,52.0795]
[1723838158909,15.4132,141.29,141.26,7.0791]
[1723838159164,15.4132,141.29,141.27,45.0]
[1723838159317,22.4909,141.29,141.25,24.7781]
[1723838159721,22.4909,141.29,141.26,45.0]
[1723838160210,7.0781,141.28,141.22,17.7023]
[1723838160430,7.0787,141.27,141.23,7.0805]
[1723838161742,7.0782,141.28,141.24,45.0]
[1723838161945,49.1232,141.29,141.24,45.0]
[1723838162141,15.4132,141.29,141.24,17.7]
[1723838162364,15.4132,141.29,141.25,45.0]
[1723838162662,15.4132,141.29,141.25,52.0792]
[1723838162844,7.0772,141.3,141.25,45.0]
[1723838163056,13.2942,141.31,141.26,7.0788]
[1723838163277,13.2942,141.31,141.27,45.0]
[1723838163781,6.2174,141.31,141.27,45.0]
[1723838163983,13.2944,141.31,141.27,45.0]
[1723838164150,7.077,141.31,141.27,45.0]
[1723838164782,7.0762,141.32,141.27,45.0]
[1723838164988,22.7191,141.38,141.31,7.0762]
[1723838165352,7.0742,141.36,141.32,45.0]
[1723838165759,7.0737,141.37,141.32,52.076]
[1723838165955,22.7191,141.38,141.34,7.0751]
[1723838166265,22.7191,141.38,141.32,69.7657]
[1723838166266,7.0737,141.37,141.32,69.7657]
[1723838166990,22.7191,141.38,141.29,17.6933]
[1723838167150,7.0752,141.34,141.3,45.0]
[1723838167350,7.0752,141.34,141.3,52.0769]
[1723838167984,7.0747,141.35,141.3,52.0769]
[1723838169275,7.0755,141.34,141.3,45.0]
[1723838169664,7.0755,141.34,141.3,52.077]
[1723838170857,7.0755,141.34,141.3,45.0]
[1723838171447,7.0755,141.34,141.3,52.077]
[1723838173097,7.0747,141.35,141.3,52.077]
[1723838173469,7.0742,141.36,141.31,24.7674]
[1723838173862,7.0747,141.35,141.31,24.7674]
[1723838174659,33.71,141.37,141.3,45.0]
[1723838174864,33.71,141.37,141.29,45.0]
[1723838175062,33.71,141.37,141.29,52.0772]
[1723838175372,7.0753,141.34,141.3,7.077]
[1723838175681,7.0753,141.34,141.31,45.0]
[1723838176050,7.0756,141.33,141.31,45.0]
[1723838176256,33.71,141.37,141.3,45.0]
[1723838176551,7.0749,141.35,141.31,7.0766]
[1723838178167,7.0749,141.35,141.3,7.0769]
[1723838178388,7.0749,141.35,141.31,45.0]
[1723838180902,7.0782,141.28,141.23,7.0802]
[1723838181109,7.0787,141.27,141.23,7.0802]
[1723838181390,7.0787,141.27,141.22,24.783]
[1723838181599,7.0787,141.27,141.23,7.0805]
[1723838182586,7.0782,141.28,141.23,7.0805]
[1723838182894,49.8489,141.31,141.24,62.6999]
[1723838183112,7.0775,141.3,141.25,7.0791]
[1723838183266,7.0775,141.3,141.26,45.0]
[1723838183873,7.0777,141.29,141.26,45.0]
[1723838184071,7.0774,141.3,141.26,45.0]
[1723838184293,49.8489,141.31,141.21,418.769]
[1723838184470,33.71,141.29,141.22,7.0808]
[1723838184672,7.0789,141.27,141.22,7.0808]
[1723838184999,7.0789,141.27,141.23,7.0805]
[1723838185299,7.0782,141.28,141.24,7.0801]
[1723838185477,49.8489,141.31,141.23,17.7012]
[1723838185680,7.0777,141.29,141.25,7.0793]
[1723838186683,49.8489,141.31,141.24,45.0]
[1723838186884,7.0786,141.27,141.24,45.0]
[1723838187219,7.0791,141.26,141.24,45.0]
[1723838187503,7.0791,141.26,141.22,7.081]
[1723838187504,7.0791,141.26,141.23,45.0]
[1723838187710,33.71,141.27,141.21,7.0815]
[1723838187996,7.0799,141.25,141.21,7.0815]
[1723838188385,7.0799,141.25,141.2,24.7867]
[1723838188602,7.0799,141.25,141.21,7.0816]
[1723838188793,7.0799,141.25,141.2,17.7048]
[1723838189106,7.0799,141.25,141.21,45.0]
[1723838190607,33.71,141.25,141.17,403.0082]
[1723838190795,7.0816,141.21,141.17,24.7914]
[1723838191387,33.71,141.23,141.16,7.084]
[1723838191388,7.0822,141.2,141.16,7.084]
[1723838191777,56.7566,141.26,141.14,17.7119]
[1723838191778,33.71,141.21,141.14,17.7119]
[1723838191985,33.71,141.21,141.11,385.3]
[1723838191986,7.084,141.17,141.11,403.0158]
[1723838192207,33.71,141.19,141.13,7.0856]
[1723838193107,7.0838,141.17,141.13,7.0856]
[1723838194114,6.5555,141.2,141.14,7.0849]
[1723838194312,7.0833,141.18,141.13,24.7992]
[1723838194492,7.0837,141.17,141.13,24.7992]
[1723838195210,42.23,141.19,141.11,7.0865]
[1723838195613,20.0,141.18,141.11,7.0865]
[1723838195810,42.23,141.17,141.1,17.7171]
[1723838196116,42.23,141.17,141.1,24.8042]
[1723838196117,7.0848,141.15,141.1,24.8042]
[1723838196282,37.7084,141.18,141.1,24.8042]
[1723838196283,7.0843,141.16,141.12,7.086]
[1723838196478,7.0838,141.17,141.12,7.086]
[1723838197687,6.5555,141.2,141.13,45.0]
[1723838197873,16.4911,141.21,141.13,45.0]
[1723838198074,7.0826,141.19,141.14,24.7974]
[1723838198312,7.0831,141.18,141.14,24.7974]
[1723838198905,7.0827,141.19,141.14,24.7974]
[1723838200552,7.0823,141.2,141.16,7.0841]
[1723838201169,27.00074901,141.21,141.16,7.084]
[1723838201638,7.0822,141.2,141.16,7.084]
[1723838202707,19.91904901,141.21,141.15,45.0]
[1723838203010,19.91904901,141.21,141.14,24.7971]
[1723838203238,7.0832,141.18,141.14,17.7124]
[1723838203609,62.14904901,141.21,141.12,7.086]
[1723838203826,62.14904901,141.21,141.11,17.7159]
[1723838203827,7.0847,141.15,141.11,17.7159]
[1723838204027,7.0847,141.15,141.11,24.8025]
[1723838204269,7.0843,141.16,141.12,7.086]
[1723838204736,19.91904901,141.21,141.17,7.0832]
[1723838204737,23.5728,141.21,141.17,7.0832]
[1723838204918,16.4911,141.21,141.17,7.0832]
[1723838205122,16.4911,141.21,141.18,7.083]
[1723838205417,6.0838,141.23,141.2,7.0821]
[1723838205614,6.0838,141.23,141.19,7.0824]
[1723838205824,7.0804,141.24,141.19,7.0824]
[1723838206053,7.0808,141.23,141.18,24.7904]
[1723838206340,7.0808,141.23,141.19,45.0]
[1723838206651,7.0808,141.23,141.18,24.7904]
[1723838206820,7.0808,141.23,141.19,45.0]
[1723838207208,16.1947,141.25,141.19,45.0]
[1723838207209,7.0811,141.22,141.19,45.0]
[1723838207728,7.0811,141.22,141.18,17.7075]
[1723838207930,7.0811,141.22,141.18,24.7906]
[1723838208146,7.0811,141.22,141.19,45.0]
[1723838210552,16.1947,141.25,141.19,45.0]